Cogmind - Beta 10.2 @@@ ROGUE MODE // 2021.05.24 @ 14:45:00 Player: cavemonk Result: Destroyed by 8R-AWN with 8R-AWN's Boregun Performance ------------- Evolutions (0) 0 Regions Visited (3) 600 Robots Destroyed (18) 90 Value Destroyed (341) 341 Prototype IDs (23) 460 Alien Tech Used (0) 0 Bonus (300) 300 TOTAL SCORE: 1791 Bonus ------- Aligned with FarCom 300 Cogmind --------- Core Integrity 0/250 Matter 295/300 Energy 95/100 System Corruption 0% Temperature Cool (0) Movement Treading (180) Ox1 Location -10/Exiles Parts ------- > --- POWER (1) -------- (None) > --- PROPULSION (2) --- Light Treads Light Treads > --- UTILITY (2) ------ Large Storage Unit High-capacity Storage Unit > --- WEAPON (2) ------- Longsword +1 > --- INVENTORY (18) --- Ion Engine Improved Heat Sink High-capacity Matter Pod (200) Beam Rifle Beam Rifle Assault Rifle Assault Rifle Assault Rifle Assault Rifle Assault Rifle Assault Rifle Assault Rifle Assault Rifle Grenade Launcher Field Lobotomy Kit Peak State ------------ > --- POWER ------------ Ion Engine > --- PROPULSION ------- Light Treads Light Treads > --- UTILITY ---------- Large Storage Unit High-capacity Storage Unit > --- WEAPON ----------- Assault Rifle Longsword +1 > --- INVENTORY -------- Ion Engine Light Treads Light Treads Improved Heat Sink High-capacity Matter Pod Beam Rifle Beam Rifle Assault Rifle Assault Rifle Assault Rifle Assault Rifle Assault Rifle Assault Rifle Assault Rifle Assault Rifle Grenade Launcher Field Lobotomy Kit [Rating: 17] Favorites ----------- Power Ion Engine Engine Ion Engine Propulsion Light Treads Treads Light Treads Leg Aluminum Leg Wheel Wheel Utility High-capacity Storage Unit Storage High-capacity Storage Unit Protection Core Shielding Weapon Beam Cannon Energy Gun Beam Rifle Energy Cannon Beam Cannon Ballistic Gun Assault Rifle Launcher Grenade Launcher Special Weapon Mining Laser Slashing Weapon Longsword +1 Build | -11 -10 -10 -10 ------- Run | Scr Mat Min Exi Slots Evolved . | . . . . Power . | . . . . Propulsion . | . . . . Utility . | . . . . Weapon . | . . . . Parts Attached 34 | 3 23 3 5 Power . | . . . . Engine . | . . . . Core . | . . . . Reactor . | . . . . Propulsion 13 | 2 7 2 2 Treads 8 | 1 4 1 2 Leg . | . . . . Wheel 5 | 1 3 1 . Hover . | . . . . Flight . | . . . . Utility 6 | 1 5 . . Device . | . . . . Storage 4 | 1 3 . . Processor . | . . . . Hackware . | . . . . Protection 2 | . 2 . . Artifact . | . . . . Weapon 15 | . 11 1 3 Energy Gun 2 | . 1 1 . Energy Cannon 5 | . 5 . . Ballistic Gun 1 | . . . 1 Ballistic Cannon . | . . . . Launcher 2 | . 1 . 1 Special Weapon 4 | . 4 . . Impact Weapon . | . . . . Slashing Weapon 1 | . . . 1 Piercing Weapon . | . . . . Special Melee Weapon . | . . . . Unidentified Prototypes . | . . . . Parts Lost 4 | . . . 4 Power 1 | . . . 1 Propulsion 2 | . . . 2 Utility . | . . . . Weapon 1 | . . . 1 Highest Loss Streak 4 | . . . 4 Average Slot Usage (%) 99 | . 99 100 98 Engine 13 | . 14 14 13 Treads 20 | . 14 27 27 Wheel 7 | . 13 . . Storage 25 | . 23 28 28 Protection 2 | . 4 . . Energy Gun 9 | . 1 27 6 Energy Cannon 9 | . 17 . . Ballistic Gun 4 | . 4 . 10 Launcher 3 | . 3 . 8 Naked Turns . | . . . . Heaviest Build 59 | 17 59 59 59 Greatest Support 40 | 20 40 40 40 Greatest Overweight (x) 5 | . 5 5 2 Average Overweight (x) 2 | . 4 1 1 Largest Inventory Capacity 18 | 8 18 18 18 Average Capacity 16 | 7 15 18 18 Most Carried 18 | 6 18 18 18 Average Carried 15 | 5 12 17 17 Final Capacity 18 | 8 18 18 18 Final Carried 18 | 3 18 18 15 Class Distribution -------------------- 100% | Mutant Dominant Class ---------------- Mutant | -10/Materials Mutant | -10/Mines Mutant | -10/Exiles Resources | -11 -10 -10 -10 ----------- Run | Scr Mat Min Exi Matter Collected 894 | 242 476 80 96 Remotely . | . . . . Salvage Created 680 | 85 319 267 9 Parts 36 | 4 21 11 . Haulers Intercepted 2 | . 2 . . Recyclers Shooed . | . . . . Parts Field Recycled . | . . . . Retrieved Matter . | . . . . Parts Self-Destructed . | . . . . Prevented . | . . . . Kills | -11 -10 -10 -10 ------- Run | Scr Mat Min Exi Combat Hostiles Destroyed 11 | . 5 4 2 Guns 6 | . 2 4 . AOE 5 | . 3 . 2 Classes Destroyed 7 | 2 4 . 1 Tunneler 2 | 1 1 . . Hauler 2 | . 2 . . Recycler 3 | 1 1 1 . Watcher 2 | . 2 . . Swarmer 3 | . 3 . . Grunt 6 | . 2 4 . Assembled 2 | . . . 2 Best Kill Streak 4 | 2 4 3 2 Combat Bots Only 3 | . 3 2 2 Max Kills in Single Turn 3 | 1 3 1 1 Gunslinging . | . . . . Exploded 3 | . 3 . 1 Melee . | . . . . Uniques/NPCs Destroyed . | . . . . Combat | -11 -10 -10 -10 -------- Run | Scr Mat Min Exi Damage Taken 907 | . 143 118 646 Core 257 | . 20 14 223 Absorbed by Shields . | . . . . Core Remaining (%) 100 | 100 . . . Volleys Fired 42 | 2 27 9 4 Largest 2 | 2 2 2 2 Hottest 120 | 40 120 112 50 Shots Fired 72 | 4 44 18 6 Gun 50 | 4 26 18 2 Cannon 8 | . 8 . . Launcher 6 | . 2 . 4 Special 8 | . 8 . . Kinetic 32 | 4 26 . 2 Thermal 34 | . 16 18 . Explosive 6 | . 2 . 4 Electromagnetic . | . . . . Robot Hit Streak 13 | 3 7 13 . Robot Miss Streak 2 | . 2 1 . Penetration Max . | . . . . Secondary Targets . | . . . . Shots Hit Robots 58 | 3 24 13 18 Core Hits 37 | 3 17 9 8 Critical Hits . | . . . . Critical Kills . | . . . . Critical Parts Destroyed . | . . . . Melee Attacks 21 | . . . 21 Impact . | . . . . Slashing 21 | . . . 21 Piercing . | . . . . Sneak Attacks . | . . . . Combat Hostiles . | . . . . Follow-up Attacks . | . . . . Damage Inflicted 1799 | 43 544 221 991 Guns 507 | 43 272 192 . Cannons 89 | . 89 . . Explosions 342 | . 176 . 166 Melee 825 | . . . 825 Ramming 36 | . 7 29 . Kinetic 315 | 43 272 . . Thermal 281 | . 89 192 . Explosive 342 | . 176 . 166 Electromagnetic . | . . . . Impact . | . . . . Slashing 825 | . . . 825 Piercing . | . . . . Highest Corruption . | . . . . Average Corruption . | . . . . Corruption Purged . | . . . . Overload Shots . | . . . . Overflow Damage . | . . . . Projectiles . | . . . . Explosions . | . . . . Melee . | . . . . Knockbacks . | . . . . Impact . | . . . . Kinetic . | . . . . Secondary . | . . . . Self-Inflicted Damage . | . . . . Shots . | . . . . Rammed 6 | . 1 5 . Targets Rammed 6 | . 1 5 . Kicked . | . . . . Crushed . | . . . . Highest Temperature 231 | . 180 231 . Average Temperature 71 | . 41 106 . Received Heat Transfer 111 | . 48 63 . Effects 1 | . . 1 . Interference 1 | . . 1 . Siege Activations . | . . . . Robots Corrupted . | . . . . Combat Hostiles . | . . . . Parts Fried . | . . . . Impact Corruptions . | . . . . Robots Melted . | . . . . Combat Hostiles . | . . . . Parts Melted 1 | . . 1 . Heat Transferred 666 | . 185 481 . Parts Sabotaged . | . . . . Parts Stolen . | . . . . Parts Stripped . | . . . . Power Chain Reactions . | . . . . Missiles Intercepted . | . . . . Alert | -11 -10 -10 -10 ------- Run | Scr Mat Min Exi Peak Influence 92 | 10 92 65 . Initial 10 | . 6 10 . Average 29 | 8 24 38 . Maximum Alert Level . | . . . . Low Security (%) 100 | 100 100 100 . Level 1 . | . . . . Level 2 . | . . . . Level 3 . | . . . . Level 4 . | . . . . Level 5 . | . . . . High Security . | . . . . Max Security . | . . . . Squads Dispatched . | . . . . Investigation . | . . . . Extermination . | . . . . Reinforcement . | . . . . Assault . | . . . . Garrison . | . . . . Intercept . | . . . . Construction Impeded . | . . . . Haulers Reinforced . | . . . . Stealth | -11 -10 -10 -10 --------- Run | Scr Mat Min Exi Distress Signals . | . . . . Communications Jammed . | . . . . Distress Signals . | . . . . Times Spotted 23 | . 11 4 8 Peak Tracking Total 9 | . 4 2 9 Tactical Retreats . | . . . . Traps | -11 -10 -10 -10 ------- Run | Scr Mat Min Exi Traps Triggered . | . . . . Indirectly . | . . . . Trap Hack Attempts . | . . . . Triggered . | . . . . Disarmed . | . . . . Reprogrammed . | . . . . Reused . | . . . . Traps Extracted . | . . . . Installed . | . . . . Triggered . | . . . . Machines | -11 -10 -10 -10 ---------- Run | Scr Mat Min Exi Machines Disabled 4 | . . . 4 Max in Single Turn 1 | . . . 1 Machines Sabotaged . | . . . . Garrisons Compromised . | . . . . Overloaded Fab Kills . | . . . . Fab Network Shutdowns . | . . . . Hacking | -11 -10 -10 -10 --------- Run | Scr Mat Min Exi Machines Accessed 10 | . 9 . 1 Terminals 7 | . 7 . . Fabricators . | . . . . Repair Stations . | . . . . Recycling Units 2 | . 2 . . Scanalyzers . | . . . . Garrison Access . | . . . . Total Hacks 25 | . 24 . 1 Successful 13 | . 12 . 1 Failed 12 | . 12 . . Catastrophic 1 | . 1 . . Database Lockouts . | . . . . Manual 20 | . 19 . 1 Terminals 21 | . 21 . . Fabricators . | . . . . Repair Stations . | . . . . Recycling Units 3 | . 3 . . Scanalyzers . | . . . . Garrison Access . | . . . . Terminal Hacks 6 | . 5 . 1 Part Schematic 1 | . 1 . . Robot Analysis 2 | . 2 . . Terminal Index 1 | . 1 . . Locate Traps 1 | . 1 . . EX-Prototype ID Bank 1 | . . . 1 Fabricator Hacks . | . . . . Repair Station Hacks . | . . . . Recycling Unit Hacks 1 | . 1 . . Retrieve Components 1 | . 1 . . Scanalyzer . | . . . . Garrison Access Hacks . | . . . . Unauthorized Hacks 6 | . 6 . . Terminals 6 | . 6 . . Track 4 | . 4 . . Assimilate 1 | . 1 . . Botnet 1 | . 1 . . Fabricators . | . . . . Repair Stations . | . . . . Recycling Units . | . . . . Scanalyzers . | . . . . Garrison Access . | . . . . Data Cores Recovered . | . . . . Used . | . . . . Hacking Detections 8 | . 8 . . Full Trace Events . | . . . . Feedback Events . | . . . . Feedback Blocked . | . . . . Robot Schematics Acquired . | . . . . Robots Built . | . . . . Matter . | . . . . Time . | . . . . Total Robot Build Rating . | . . . . Part Schematics Acquired 1 | . 1 . . Parts Built . | . . . . Matter . | . . . . Time . | . . . . Total Part Build Rating . | . . . . Parts Repaired . | . . . . Time . | . . . . Parts Recycled . | . . . . Recycled Matter . | . . . . Retrieved Matter . | . . . . Retrieved Components 4 | . 4 . . Parts Scanalyzed . | . . . . Part Schematics Acquired . | . . . . Parts Damaged . | . . . . Bothacking | -11 -10 -10 -10 ------------ Run | Scr Mat Min Exi Used RIF Installer . | . . . . Robots Hacked . | . . . . Non-combat . | . . . . Combat . | . . . . Robot Hacks Applied . | . . . . Relay Couplers Released . | . . . . Robots Rewired . | . . . . Allies Hacked . | . . . . Hacks Repelled . | . . . . Allies | -11 -10 -10 -10 -------- Run | Scr Mat Min Exi Total Allies 4 | . 1 3 . Largest Group 3 | . 1 3 3 Highest-Rated Group 40 | . 10 40 40 Highest-Rated Ally 16 | . 10 16 16 Total Orders 4 | . . . 4 STAY 3 | . . . 3 GUARD 1 | . . . 1 Ally Attacks 14 | . . . 14 Total Damage 142 | . . . 142 Kills 3 | . . . 3 Allies Corrupted . | . . . . Allies Melted . | . . . . Intel | -11 -10 -10 -10 ------- Run | Scr Mat Min Exi Robot Analysis Total 2 | . 2 . . Derelict Logs Recovered 3 | . . 3 . Drone Launches . | . . . . Drone Recoveries . | . . . . Exploration | -11 -10 -10 -10 ------------- Run | Scr Mat Min Exi Turns Passed 4061 | 46 2068 1046 901 Spaces Moved 2082 | 27 1042 567 446 Core . | . . . . Treads 1022 | 9 44 523 446 Legs 18 | 18 . . . Wheels 1042 | . 998 44 . Hover . | . . . . Flight . | . . . . Fastest Speed 120 | 120 120 130 180 Average Speed 151 | 133 127 176 180 Slowest Speed 200 | 160 200 180 200 Overloaded Moves . | . . . . Propulsion Burnouts . | . . . . Robots Hopped . | . . . . Cave-ins Triggered . | . . . . Exploration Rate (%) 62 | 3 89 98 61 Regions Visited 3 Branch Regions 2 Pre-discovered Areas 1 | . . 1 . Known Exits Taken . | . . . . Unknown Exits Taken 3 | 1 1 1 . Scrap Searched 1 | . . 1 . Spaces Dug 8 | . 8 . . Terrain Destroyed 34 | . 15 . 19 Melee . | . . . . Projectile 8 | . 8 . . AOE 26 | . 7 . 19 Terrain Rammed . | . . . . Walls Destroyed . | . . . . Machines Disabled . | . . . . Actions | -11 -10 -10 -10 --------- Run | Scr Mat Min Exi Total 2872 | 34 1726 593 519 Wait 626 | . 586 6 34 Move 2079 | 26 1041 566 446 Hop . | . . . . Pick Up 33 | . 27 2 4 Fast Attach 5 | 1 4 . . Attach 8 | 2 2 . 4 Detach 3 | . 3 . . Swap 21 | . 17 3 1 Drop 28 | 3 18 2 5 Fire 42 | 2 27 9 4 Melee 21 | . . . 21 Ram . | . . . . Kick . | . . . . Crush 6 | . 1 5 . Escape Stasis . | . . . . Rewire . | . . . . Trap . | . . . . Miscellaneous . | . . . . Route ------- -11/Scrapyard -10/Materials (discovered 4 exits: [*Mat x3] / [*Min]) -10/Mines (discovered 3 exits: [*Mat x2] / *Exi) -10/Exiles History --------- Turn | Location | Event 4 | -11/Scrapyard | Discovered new exit (range 3) 47 | -11/Scrapyard | Entered Materials 240 | -10/Materials | Discovered new exit (range 10) 308 | -10/Materials | Build established: Mutant 503 | -10/Materials | Discovered new exit (range 7) 1056 | -10/Materials | Discovered new exit (range 5) 1549 | -10/Materials | Discovered new exit (range 7) 2115 | -10/Materials | Entered Mines 2277 | -10/Mines | Discovered new exit (range 8) 2327 | -10/Mines | Discovered new exit (range 8) 2401 | -10/Mines | Learned Materials garrison access intel 2405 | -10/Mines | Learned location of 1 exit from Materials 2428 | -10/Mines | Deemed a non-threat by the Exiles lab entrance 2428 | -10/Mines | Discovered new exit (range 5) 2500 | -10/Mines | Learned location of Storage (-9) 2633 | -10/Mines | Assisted by bots powering up and referring to "LRC-V3" 3161 | -10/Mines | Entered Exiles 3161 | -10/Exiles | Accompanied by 3 allies 3206 | -10/Exiles | Met 8R-AWN 3233 | -10/Exiles | Met EX-HEX 3300 | -10/Exiles | Met EX-BIN 3325 | -10/Exiles | Aligned with FarCom system 3327 | -10/Exiles | Given EX-Vault access code 3370 | -10/Exiles | Opened EX-Vault 3383 | -10/Exiles | Found Longsword +1 3393 | -10/Exiles | Found Field Lobotomy Kit 3430 | -10/Exiles | Warned to stay clear of 0b10 Research branches 3484 | -10/Exiles | Met EX-DEC 3908 | -10/Exiles | Attacked by the Exiles 4036 | -10/Exiles | Core integrity fell below 50% 4045 | -10/Exiles | Core integrity fell below 20% 4062 | -10/Exiles | Destroyed by 8R-AWN with 8R-AWN's Boregun Last Messages --------------- 04044_ HV Slug penetrates Wall. 04044_ Penetrated by HV Slug. 04044_ HV Slug penetrates Wall. 04046_ Penetrated by HV Slug. 04046_ HV Slug penetrates Wall. 04046_ Penetrated by HV Slug. 04046_ HV Slug penetrates Wall. 04048_ Penetrated by HV Slug. 04048_ HV Slug penetrates Wall. 04050_ Penetrated by HV Slug. 04050_ HV Slug penetrates Wall. 04054_ Penetrated by HV Slug. 04054_ HV Slug penetrates Wall. 04054_ Penetrated by HV Slug. 04054_ HV Slug penetrates Wall. 04058_ Penetrated by HV Slug. 04058_ HV Slug penetrates Wall. 04058_ Penetrated by HV Slug. 04058_ HV Slug penetrates Wall. 04062_ Penetrated by HV Slug. Map ----- +----------------------------------------------------+ | ?????????????????????????????????????????????????? | | ?????????????????????????????????????????????????? | | ?????????????????????????????????????????????????? | | ?????????????????????????????????????????????????? | | ?????????????????????????????????????????????????? | | ?????????????????????????????????????????????????? | | ?????????????????????????????????????????????????? | | ?????????????????????????????????????????????????? | | ?????????????????????????????????????????????????? | | ?????????????????????????????????????????????????? | | ?????????????????? ??????????????????????????????? | | ?????????????????? ??????????????#######????????? | | ????????????????? ######???????#!!! "#????????? | | ????????????????? #""#??????# "#????????? | | ????????????????? ??????# "#????????? | | ????????????????##" #????##! ""#????????? | | ????????????????#"" #####" ""#????????? | | ????????????????#;## ##" #????????? | | ?????????????????# ## #"" ###????????? | | ??????????????????# #??# #??????????? | | ???????????????????#;#?#### ##?????????? | | ????????????????????# #???### #?????????? | | ????????????????????##;#####" ###???????? | | ????????????????????# !! """ ##??????? | | ????????????????????# "###" ##?? | | ????????????????????#! @ "#?##" ## | | ????????????????????#! g ##??" | | ????????????????????# !""""""###???#" | | ????????????????????##########?????## | | ????????????????????????????????????? | | ????????????????????????????????????? ## | | ?????????????????????????????????????####?## | | ???????????????????????????????????????????## | | ????????????????????????????????????????????##" | | ?????????????????????????????????????????????#""" | | ?????????????????????????????????????????????#" | | ????????????????????????????????????????????#"" | | ????????????????????????????????????????????#""" | | ????????????????????????????????????????????""" | | ????????????????????????????????????????????""" | | ?????????????????????????????????????????????" | | ?????????????????????????????????????????????"" | | ????????????????????????????????????????????"" | | ?????????????????????????????????????????????"" | | ??????????????????????????????????????????????""" | | ??????????????????????????????????????????????? | | ????????????????????????????????????????????????? | | ?????????????????????????????????????????????????? | | ?????????????????????????????????????????????????? | | ?????????????????????????????????????????????????? | +----------------------------------------------------+ Best States ------------- Heat Dissipation 25 Energy Generation 10 Energy Capacity 250 Matter Stores 300 Matter Capacity 300 Sight Range 16 Terrain Scan Density 10 Core Shielding 20 Weapon Shielding 33 Evasion (%) 40 Recoil Reduction 2 Item Schematics ----------------- Hcp. Storage Unit | -10/Materials | Hacked Robot Schematics ------------------ None Fabricated ------------ Nothing Alien Tech Used ----------------- None Achievements -------------- None Challenges ------------ None Game ------ Seed BombLightningPlating Manual? 0 Play Time 00:27:10 Cumulative 220.7 hours Start 2021.05.24 @ 14:15:21 End 2021.05.24 @ 14:45:00 Sessions 1 Manual Loads 0 Difficulty Rogue Special Mode None Game No. 147 Rogue 147 Adventurer 0 Explorer 0 Win Type - Total 4 Types 4/0/0/0/0/0/0/0/0 Lore% 48 Gallery% 70 Achievement% 54 Wizard Run 0 Options --------- ASCII 0 Keyboard 0 Movement Numpad Keybinds 0 Fullscreen 2 Font 18/TerminusBold Map View 76x50 Tactical HUD 1 Map Filters NONE Filters NONE Steam 1 RUN: 115bc82a-7d1c-4faf-897b-f4d4cf820434